bitfinex-derivatives/quotes_ETHF0:USTF0_20250704
["timestamp","ask_amount","ask_price","bid_price","bid_amount"]
[1751665635176,1.22694742,2494.3,2494.2,0.80174]
[1751665638684,2.02864742,2494.3,2494.2,0.80174]
[1751665638879,1.22694742,2494.3,2494.2,0.80174]
[1751665640182,4.69718,2494.4,2494.2,0.80174]
[1751665640384,0.8017,2494.3,2494.2,0.80174]
[1751665640582,0.8017,2494.3,2494.1,0.80175]
[1751665640783,0.80174,2494.2,2494.1,0.80175]
[1751665642481,5.89969,2494.4,2493.8,2.0939]
[1751665642786,0.80181,2494.0,2493.9,0.80181]
[1751665643385,0.80181,2494.0,2493.9,0.80183]
[1751665652386,1.49239,2494.1,2494.0,0.8018]
[1751665652591,2.72099796,2494.1,2494.0,0.8018]
[1751665670703,1.91920796,2494.1,2494.0,0.8018]
[1751665670903,2.72097796,2494.1,2494.0,0.8018]
[1751665672403,1.22860796,2494.1,2494.0,0.8018]
[1751665672603,1.22860796,2494.1,2494.0,2.132]
[1751665687413,0.80169,2494.4,2494.3,0.8017]
[1751665687615,2.03181906,2494.4,2494.3,0.8017]
[1751665693316,5.23961906,2494.4,2494.3,0.8017]
[1751665697919,5.23974904,2494.4,2494.3,0.8017]
[1751665698114,4.00949,2494.4,2494.3,0.8017]
[1751665698421,5.23977522,2494.4,2494.3,0.8017]
[1751665698720,4.00949,2494.4,2494.3,0.8017]
[1751665698921,5.23977625,2494.4,2494.3,0.8017]
[1751665701124,41.72077625,2494.4,2494.3,0.8017]
[1751665702324,41.72098385,2494.4,2494.3,0.8017]
[1751665710632,38.51318385,2494.4,2494.3,0.8017]
[1751665714034,2.03218385,2494.4,2494.3,0.8017]
[1751665714235,38.47218385,2494.4,2494.3,0.8017]
[1751665717744,0.80173,2494.3,2494.2,0.80171]
[1751665717945,2.03222385,2494.3,2494.2,0.80171]
[1751665720446,1.23049385,2494.3,2494.2,0.80171]
[1751665721545,1.23074551,2494.4,2494.1,2.00443]
[1751665721845,1.23074551,2494.3,2494.2,1.47964]
[1751665724746,1.23074551,2494.3,2494.2,6.47964]
[1751665725240,14.5018,2494.8,2494.2,8.8857]
[1751665725444,14.5018,2494.8,2494.7,0.80158]
[1751665725645,15.73196383,2494.8,2494.7,0.80158]
[1751665727455,4.43796383,2494.8,2494.7,0.80158]
[1751665739662,1.23016383,2494.8,2494.7,0.80158]
[1751665760175,3.8829,2495.0,2494.9,0.80151]
[1751665760378,5.09406213,2495.0,2494.9,0.80151]
[1751665763975,1.88626213,2495.0,2494.9,0.80151]
[1751665764667,5.09406213,2495.0,2494.9,0.80151]
[1751665765577,1.88626213,2495.0,2494.9,0.80151]
[1751665778683,1.88498289,2495.0,2494.9,0.80151]
[1751665779489,1.20988289,2495.0,2494.9,0.80151]
[1751665779890,0.27768289,2495.0,2494.9,5.80151]
[1751665780192,3.05873864,2495.7,2495.6,0.80129]
[1751665780779,0.6557,2495.7,2495.6,0.80129]
[1751665782285,0.6557,2495.7,2495.3,3.2078]
[1751665782482,0.80142,2495.2,2495.0,0.80147]
[1751665782686,2.10955,2495.1,2495.0,0.80147]
[1751665782994,2.10955,2495.1,2494.9,0.8015]
[1751665784394,1.3081,2495.1,2495.0,0.80148]
[1751665794204,2.50400373,2495.1,2495.0,0.80148]
[1751665794805,1.3081,2495.1,2495.0,0.80148]
[1751665796908,2.50404433,2495.1,2495.0,0.80148]
[1751665804919,2.50457845,2495.1,2495.0,0.80148]
[1751665806719,1.85577845,2495.1,2495.0,0.80148]
[1751665814322,3.20157845,2495.1,2495.0,0.80148]
[1751665823127,1.85577845,2495.1,2495.0,0.80148]
[1751665829837,2.65722845,2495.1,2495.0,0.80148]
[1751665830030,4.08462845,2495.1,2495.0,0.80148]
[1751665831636,0.80149,2495.0,2494.7,3.2078]
[1751665831837,1.19647845,2494.9,2494.8,0.80154]
[1751665833337,1.99798845,2494.9,2494.8,0.80154]
[1751665833732,1.99798845,2494.9,2494.7,3.2078]
[1751665833940,1.89447845,2494.8,2494.7,4.00938]
[1751665838041,2.69601845,2494.8,2494.7,3.2078]
[1751665838742,2.69601845,2494.8,2494.7,4.00938]
[1751665839244,0.80158,2494.7,2494.6,0.80159]
[1751665839438,1.99805845,2494.7,2494.6,0.80159]
[1751665839640,0.80161,2494.6,2494.4,3.2078]
[1751665839939,0.80164,2494.5,2494.1,0.6866]
[1751665840137,1.50414,2494.5,2494.1,1.3549]
[1751665840337,0.7025,2494.5,2494.4,0.80167]
[1751665840738,1.89708701,2494.5,2494.4,0.80167]
[1751665840938,1.8970857,2494.5,2494.4,0.80167]
[1751665841343,1.50414,2494.5,2494.4,0.80167]
[1751665841846,0.7025,2494.5,2494.4,0.80167]
[1751665843644,1.50414,2494.5,2494.4,0.80167]
[1751665843845,2.69803095,2494.5,2494.1,1.3549]
[1751665844144,1.19389095,2494.4,2494.3,0.80168]
[1751665844545,1.99556095,2494.4,2494.3,0.80168]
[1751665844842,1.19389095,2494.4,2494.3,0.80168]
[1751665845348,1.50416,2494.5,2494.4,0.80167]
[1751665845547,2.69742458,2494.5,2494.3,0.80168]
[1751665845741,0.80167,2494.4,2494.3,0.80168]
[1751665845936,0.7025,2494.5,2494.4,0.80167]
[1751665846142,2.69838756,2494.5,2494.3,0.80169]
[1751665846340,0.80169,2494.4,2494.2,0.80171]
[1751665846544,0.80169,2494.4,2494.1,2.7507]
[1751665847255,1.50417,2494.5,2494.1,2.7507]
[1751665847551,0.80167,2494.4,2494.3,0.80168]
[1751665848049,0.80172,2494.3,2494.2,0.80172]
[1751665848742,0.80169,2494.4,2494.3,0.80169]
[1751665848942,1.99526023,2494.4,2494.3,0.80169]
[1751665849449,1.99526023,2494.4,2494.3,0.8017]
[1751665853451,0.80172,2494.3,2494.2,0.80172]
[1751665854348,0.80169,2494.4,2494.3,0.80169]
[1751665854548,1.9950344,2494.4,2494.3,0.80169]
[1751665855148,1.1933444,2494.4,2494.3,0.80169]
[1751665856352,1.9950144,2494.4,2494.3,0.80169]
[1751665861057,0.80172,2494.3,2494.2,0.80172]
[1751665861859,0.80176,2494.2,2494.1,0.80174]
[1751665864654,0.80179,2494.1,2494.0,0.80178]
[1751665866367,1.9965283,2494.1,2494.0,0.80178]
[1751665867064,0.80179,2494.1,2494.0,0.80178]
[1751665867367,1.99681562,2494.1,2494.0,0.80178]
[1751665867863,1.19504562,2494.1,2494.0,0.80178]
[1751665870970,1.89054562,2494.1,2494.0,0.80178]
[1751665875573,1.19504562,2494.1,2494.0,0.80178]
[1751665875871,3.2078,2494.4,2494.3,0.8017]
[1751665876277,3.2078,2494.8,2494.7,0.80158]
[1751665876471,4.40687699,2494.8,2494.7,0.80158]
[1751665876671,1.19907699,2494.8,2494.7,0.80158]
[1751665881177,58.4398,2495.1,2495.0,0.80148]
[1751665881476,59.63596297,2495.1,2495.0,0.80148]
[1751665885176,60.43741297,2495.1,2495.0,0.80148]
[1751665886077,60.43741297,2495.1,2494.9,0.80149]
[1751665886278,1.19616297,2495.0,2494.9,0.80149]
[1751665892079,59.24125,2495.1,2495.0,0.80148]
[1751665892281,60.43485942,2495.1,2495.0,0.80148]
[1751665894881,2.70685942,2495.1,2495.0,0.80148]
[1751665895083,39.07185942,2495.1,2495.0,0.80148]
[1751665899290,1.90540942,2495.1,2495.0,0.80148]
[1751665899488,38.26840942,2495.1,2495.0,0.80148]
[1751665899789,39.06985942,2495.1,2495.0,0.80148]
[1751665901189,38.26840942,2495.1,2495.0,0.80148]
[1751665901391,39.06985942,2495.1,2495.0,0.80148]
[1751665901589,38.26840942,2495.1,2495.0,0.80148]
[1751665901790,39.06985942,2495.1,2495.0,0.80148]
[1751665902087,38.26840942,2495.1,2495.0,0.80148]
[1751665902391,39.06985942,2495.1,2495.0,0.80148]
[1751665902591,38.26840942,2495.1,2495.0,0.80148]
[1751665902792,1.19360942,2495.1,2495.0,0.80148]
[1751665903091,39.5688,2495.3,2495.2,0.80142]
[1751665903292,40.76307204,2495.3,2495.2,0.80142]
[1751665903692,4.40207204,2495.3,2495.2,0.80142]
[1751665906790,1.19427204,2495.3,2495.2,7.14472]
[1751665906996,3.2078,2495.6,2495.2,7.14472]
[1751665906997,3.2078,2495.6,2495.5,0.80132]
[1751665907185,4.40344391,2495.6,2495.5,0.80132]
[1751665908094,1.19564391,2495.6,2495.5,0.80132]
[1751665908294,1.19564391,2495.6,2495.5,1.51842]
[1751665910096,37.0385,2495.8,2495.7,0.80126]
[1751665910289,38.23121136,2495.8,2495.7,0.80126]
[1751665914794,38.23121136,2495.8,2495.7,5.80126]
[1751665914795,1.19271136,2495.8,2495.7,5.80126]
[1751665914994,3.8597,2496.3,2496.2,0.80109]
[1751665915695,3.2078,2496.3,2496.2,0.80109]
[1751665916901,2.1785,2496.5,2496.3,0.80104]
[1751665917196,2.1785,2496.5,2496.4,0.80103]
[1751665917398,1.3775,2496.5,2496.4,0.80103]
[1751665918001,3.2078,2496.7,2496.6,0.80097]
[1751665918294,3.2078,2496.7,2496.5,0.80098]
[1751665918295,0.80097,2496.6,2496.5,0.80098]
[1751665918494,0.80097,2496.6,2496.4,0.80101]
[1751665918699,0.6898,2496.5,2496.4,0.80103]
[1751665919602,1.4908,2496.5,2496.3,0.80104]
[1751665920200,0.6898,2496.5,2496.4,0.80103]
[1751665922604,1.4908,2496.5,2496.4,0.80103]
[1751665923106,0.6898,2496.5,2496.4,0.80103]
[1751665923504,1.4908,2496.5,2496.4,0.80103]
[1751665936123,0.6898,2496.5,2496.4,0.80103]
[1751665944336,4.38652327,2496.6,2496.5,0.801]
[1751665948839,5.18749327,2496.6,2496.5,0.801]
[1751665949231,4.38652327,2496.6,2496.5,0.801]
[1751665949428,1.17872327,2496.6,2496.5,0.801]
[1751665966654,0.7183,2496.8,2496.7,0.80093]
[1751665966852,1.89652674,2496.8,2496.7,0.80093]
[1751665979563,1.89652674,2496.8,2496.7,0.80087]
[1751665979755,3.27382674,2496.8,2496.7,0.80087]
[1751665980563,1.89652674,2496.8,2496.7,0.80087]
[1751665989269,3.31532674,2496.8,2496.7,0.80087]
[1751665989470,4.11615674,2496.8,2496.6,0.80086]
[1751665989670,1.17822674,2496.7,2496.6,0.80086]
[1751665994071,1.17822674,2496.7,2496.4,3.8766]
[1751665994072,1.17822674,2496.7,2496.4,3.2078]
[1751665994272,0.80092,2496.5,2496.4,3.2078]
[1751665994574,1.9792492,2496.5,2496.4,3.2078]
[1751665994779,10.7684292,2496.5,2495.6,12.80098232]
[1751665994980,0.80125,2495.5,2495.3,3.2078]
[1751665995180,0.6743,2495.4,2495.3,4.00909]
[1751665995368,3.2078,2495.8,2495.3,3.2078]
[1751665995575,3.2078,2496.1,2495.6,3.2078]
[1751665995775,3.2078,2496.1,2496.0,0.80108]
[1751665996076,4.38391597,2496.1,2496.0,0.80108]
[1751665996278,3.2078,2496.4,2496.2,0.80101]
[1751665996478,1.17563477,2496.3,2496.2,0.80101]
[1751665997579,1.17563477,2496.3,2496.1,0.80103]
[1751665997780,1.49115,2496.4,2496.2,0.6905]
[1751665997975,1.97628297,2496.3,2496.2,0.6905]
[1751665998176,1.97628297,2496.3,2496.0,0.80106]
[1751665998477,1.17514618,2496.2,2495.7,3.2078]
[1751665998674,5.08343107,2496.1,2495.3,4.5887]
[1751665998980,0.80113,2495.9,2495.6,0.80118]
[1751665999175,2.0843,2496.0,2495.7,0.80116]
[1751666000181,0.80112,2495.9,2495.7,0.80116]
[1751666002580,0.80114,2495.8,2495.6,0.80119]
[1751666004581,0.6705,2495.7,2495.6,0.80119]
[1751666004976,1.47167,2495.7,2495.5,1.51522]
[1751666006679,0.6705,2495.7,2495.5,1.51522]
[1751666006878,1.4717,2495.7,2495.5,0.80122]
[1751666007886,0.80121,2495.6,2495.5,0.80122]
[1751666008185,0.80125,2495.5,2495.3,4.00908]
[1751666008586,0.7025,2495.4,2495.3,4.00908]
[1751666009683,0.7025,2495.4,2495.3,0.80128]
[1751666010487,0.8013,2495.3,2495.2,1.3079]
[1751666010683,0.80134,2495.2,2495.1,0.7154]
[1751666010885,0.7025,2495.4,2495.1,0.7154]
[1751666011192,0.7025,2495.4,2495.2,0.80133]
[1751666011481,0.80131,2495.3,2495.2,0.80132]
[1751666012190,1.50379,2495.4,2495.2,0.80132]
[1751666012389,0.8013,2495.3,2495.2,0.80132]
[1751666012589,1.50379,2495.4,2495.2,0.80132]
[1751666012790,0.7025,2495.4,2495.2,0.80132]
[1751666013088,1.5038,2495.4,2495.2,0.80132]
[1751666014289,0.8013,2495.3,2495.2,0.80132]
[1751666014588,3.2078,2495.5,2495.4,0.80127]
[1751666014784,0.6544,2495.8,2495.6,0.8012]
[1751666014984,3.2078,2495.9,2495.7,0.80115]
[1751666015185,3.2078,2495.9,2495.8,1.49424]
[1751666015490,4.00891,2495.9,2495.8,1.49424]
[1751666017491,3.2078,2495.9,2495.8,1.49424]
[1751666017693,4.00891,2495.9,2495.8,0.6931]
[1751666019492,4.00891,2495.9,2495.8,1.49424]
[1751666020094,3.2078,2495.9,2495.8,1.49424]
[1751666022094,3.2078,2496.3,2496.2,0.80101]
[1751666022295,4.38713248,2496.3,2496.2,0.80101]
[1751666022784,5.18811248,2496.3,2496.2,0.80101]
[1751666023189,3.72303864,2496.7,2496.5,0.80092]
[1751666023190,3.2078,2496.6,2496.5,0.80092]
[1751666032197,3.88,2497.0,2496.9,0.80079]
[1751666032398,3.2078,2497.7,2497.2,2.00169]
[1751666032690,0.6982,2497.6,2497.3,0.80066]
[1751666032898,3.2078,2497.4,2497.3,0.80066]
[1751666033098,2.86737,2497.6,2497.3,0.80066]
[1751666033290,3.2078,2497.4,2496.8,3.2078]
[1751666033595,0.80065,2497.4,2497.1,0.8007]
[1751666033796,0.80065,2497.4,2496.5,4.5794]
[1751666033797,0.80073,2497.1,2496.5,4.5794]
[1751666033990,1.401,2497.0,2496.9,0.80078]
[1751666034191,1.401,2497.0,2496.8,0.8008]
[1751666034599,2.8327,2497.0,2496.8,0.8008]
[1751666035294,3.63347,2497.0,2496.8,0.8008]
[1751666036400,3.63347,2497.0,2496.7,0.80083]
[1751666036700,3.63347,2497.0,2496.8,0.80082]
[1751666037302,0.80079,2496.9,2496.5,4.5794]
[1751666037594,0.80085,2496.7,2496.5,4.0087]
[1751666037803,0.80085,2496.7,2496.5,0.8009]
[1751666037997,1.51509,2496.6,2496.5,0.8009]
[1751666038197,2.88779,2496.6,2496.5,0.8009]
[1751666039802,2.0869,2496.6,2496.5,0.8009]
[1751666040101,2.88779,2496.6,2496.4,0.80093]
[1751666040301,0.6764,2496.5,2496.4,0.80093]
[1751666044103,0.6764,2496.5,2496.1,3.2078]
[1751666044306,0.6764,2496.5,2496.4,0.80095]
[1751666044906,2.0527,2496.5,2496.4,0.80095]
[1751666045201,0.6764,2496.5,2496.4,0.80095]
[1751666046105,0.6764,2496.5,2496.1,5.21036]
[1751666046409,0.6764,2496.5,2496.4,0.80095]
[1751666047708,0.7142,2496.6,2496.5,0.80092]
[1751666048006,0.6798,2496.9,2496.8,0.80082]
[1751666048300,3.8846,2497.1,2496.6,0.6577]
[1751666048501,0.6798,2497.3,2497.2,0.80069]
[1751666048702,1.85001582,2497.3,2497.2,0.80069]
[1751666048899,2.65067582,2497.3,2497.2,0.80069]
[1751666049101,0.6798,2497.3,2497.2,0.80069]
[1751666049304,1.84835371,2497.3,2497.2,0.80069]
[1751666050306,1.8488438,2497.3,2497.2,0.80069]
[1751666051212,0.6798,2497.3,2497.2,0.80069]
[1751666051410,0.6768,2497.4,2497.3,0.80066]
[1751666051723,1.84627856,2497.4,2497.3,0.80066]
[1751666052204,1.16947856,2497.4,2497.3,0.80066]
[1751666055313,0.6541,2497.6,2497.5,0.8006]
[1751666055508,2.62165143,2497.6,2497.4,0.80062]
[1751666055710,2.49227143,2497.5,2497.4,0.80062]
[1751666056316,1.16697143,2497.5,2497.4,0.80062]
[1751666056511,1.96757143,2497.5,2497.4,0.80062]
[1751666056708,1.16697143,2497.5,2497.0,5.2913]
[1751666056907,2.63842143,2497.4,2497.0,5.2913]
[1751666057107,1.47145,2497.4,2497.0,3.8682]
[1751666057514,1.47145,2497.4,2497.3,0.80066]
[1751666057814,1.83758726,2497.4,2497.0,4.00855]
[1751666058117,0.80073,2497.1,2497.0,4.00855]
[1751666058424,0.80079,2496.9,2496.6,3.2078]
[1751666058610,0.80083,2496.8,2496.6,3.2078]
[1751666060412,0.80083,2496.8,2496.7,0.80085]
[1751666060804,0.80085,2496.7,2496.6,4.00867]
[1751666061914,0.80084,2496.8,2496.7,0.80085]
[1751666062115,1.16715301,2496.9,2496.6,3.2078]
[1751666062310,1.16715301,2496.8,2496.7,0.80085]
[1751666062613,1.16715301,2496.8,2496.6,3.2078]
[1751666062614,1.3519,2497.0,2496.9,0.80079]
[1751666062814,1.83788042,2497.0,2496.9,0.80079]
[1751666063009,3.2078,2497.1,2497.0,0.80076]
[1751666063315,0.80065,2497.4,2497.3,0.80066]
[1751666063514,1.96776384,2497.4,2497.3,0.80066]
[1751666063814,1.16711384,2497.4,2497.3,0.80066]
[1751666064015,1.96774384,2497.4,2497.3,0.80066]
[1751666065513,1.96774384,2497.4,2497.2,0.80068]
[1751666065812,1.16711384,2497.3,2497.2,0.80068]
[1751666066006,1.47402,2497.5,2497.4,0.80063]
[1751666066213,1.84183823,2497.5,2497.4,0.80063]
[1751666066413,1.96903823,2497.5,2497.4,0.80063]
[1751666066809,1.16843823,2497.5,2497.4,0.80063]
[1751666067713,4.72397,2497.6,2497.5,0.8006]
[1751666067913,5.89213449,2497.6,2497.5,0.8006]
[1751666068516,5.09156449,2497.6,2497.5,0.8006]
[1751666068720,1.16816449,2497.6,2497.5,0.8006]
[1751666069213,1.16816449,2497.6,2497.2,3.2078]
[1751666069414,0.80063,2497.4,2497.2,4.00849]
[1751666069616,0.80076,2497.0,2496.9,3.2078]
[1751666069815,3.2078,2497.1,2496.6,3.2078]
[1751666070112,3.2078,2497.1,2496.7,0.80085]
[1751666070113,0.80084,2496.8,2496.7,0.80085]
[1751666070519,1.51404,2496.8,2496.7,0.80085]
[1751666071427,0.7132,2496.8,2496.7,0.80085]
[1751666071914,0.80077,2497.0,2496.9,0.80079]
[1751666072221,4.00855,2497.1,2496.7,2.1003]
[1751666072416,4.00855,2497.1,2496.8,1.3898]
[1751666073426,4.00855,2497.1,2497.0,0.80076]
[1751666073614,5.17617656,2497.1,2497.0,0.80076]
[1751666073814,1.96837656,2497.1,2497.0,0.80076]
[1751666075116,1.16762656,2497.1,2497.0,0.80076]
[1751666075318,1.96835656,2497.1,2497.0,0.80076]
[1751666075517,1.16762656,2497.1,2497.0,0.80076]
[1751666077219,3.2078,2497.8,2497.4,0.80063]
[1751666077524,0.6705,2497.7,2497.6,0.80057]
[1751666086226,0.7065,2498.0,2497.9,0.80047]
[1751666086526,2.21314,2498.0,2497.9,0.80047]
[1751666089229,3.37273334,2498.0,2497.9,0.80047]
[1751666089627,4.70203334,2498.0,2497.9,0.80047]
[1751666091727,0.80048,2497.9,2497.8,0.80048]
[1751666092030,2.14558,2497.9,2497.8,0.80048]
[1751666092231,3.30539519,2497.9,2497.8,0.80048]
[1751666093431,0.80054,2497.8,2497.7,0.80053]
[1751666093631,2.14564,2497.8,2497.7,0.80053]
[1751666096036,1.4127,2498.0,2497.8,0.80049]
[1751666096235,1.96092443,2497.9,2497.8,0.80049]
[1751666098237,0.80051,2497.8,2497.7,0.80051]
[1751666099239,0.80049,2497.9,2497.7,0.80051]
[1751666099434,0.80049,2497.9,2497.8,0.8005]
[1751666099630,1.96085927,2497.9,2497.8,0.8005]
[1751666100940,1.16036927,2497.9,2497.8,0.8005]
[1751666108950,1.96085927,2497.9,2497.8,0.8005]
[1751666109549,0.8005,2497.8,2497.7,0.80052]
[1751666109745,1.96086927,2497.8,2497.7,0.80052]
[1751666117553,1.16036927,2497.8,2497.7,0.80052]
[1751666124152,1.16036927,2497.8,2497.7,2.21622]
[1751666128460,1.16036927,2497.8,2497.7,0.80052]
[1751666132664,1.16036927,2497.8,2497.7,2.12292]
[1751666132865,1.16036927,2497.8,2497.7,0.80052]
[1751666136671,1.16036927,2497.8,2497.7,2.21502]
[1751666137371,1.16310348,2497.9,2497.8,0.8005]
[1751666140872,1.85880348,2497.9,2497.8,0.8005]
[1751666141471,2.65927348,2497.9,2497.8,0.8005]
[1751666141774,1.85880348,2497.9,2497.8,0.8005]
[1751666147474,1.16310348,2497.9,2497.8,0.8005]
[1751666148879,1.16310348,2497.9,2497.7,1.4145]
[1751666149078,1.16274257,2497.8,2497.7,2.21503]
[1751666151674,1.16274257,2497.8,2497.7,5.42283]
[1751666152174,0.80108,2496.0,2495.9,10.39268478]
[1751666152379,0.80108,2496.0,2495.8,7.99437291]
[1751666152380,0.80111,2495.9,2495.8,3.75914002]
[1751666152581,12.37211,2495.9,2495.8,3.75914002]
[1751666152882,0.80124,2495.5,2495.4,1.4213]
[1751666153183,0.80124,2495.5,2494.7,0.80148]
[1751666153184,3.2078,2495.5,2494.7,0.80148]
[1751666153478,4.00914,2495.2,2495.1,2.0018]
[1751666154277,0.80143,2494.9,2494.6,5.43061]
[1751666154480,0.80143,2494.9,2494.7,1.4213]
[1751666154681,0.80142,2495.0,2494.8,2.0018]
[1751666154880,0.80142,2495.0,2494.9,1.3045]
[1751666155080,0.80142,2495.0,2494.9,3.3063]
[1751666156783,3.2078,2495.2,2494.9,3.3063]
[1751666156984,2.20960154,2495.1,2494.9,1.3045]
[1751666157283,0.80139,2495.1,2494.9,1.3045]
[1751666157479,3.2078,2495.2,2495.0,2.0018]
[1751666157480,4.00915,2495.2,2495.0,2.0018]
[1751666157682,1.40586143,2495.1,2494.9,1.3045]
[1751666157889,3.2078,2495.2,2495.1,2.0018]
[1751666158185,4.6136585,2495.2,2495.1,2.0018]
[1751666158382,4.6136585,2495.2,2494.9,2.1059]
[1751666158583,3.2078,2495.2,2495.1,2.0018]
[1751666158779,4.61152427,2495.2,2495.1,2.0018]
[1751666158979,4.61152427,2495.2,2495.0,0.8014]
[1751666159175,3.2078,2495.2,2495.1,2.80317]
[1751666159484,3.2078,2495.5,2495.4,0.80127]
[1751666159676,4.61480507,2495.5,2495.4,0.80127]
[1751666159880,3.2078,2495.5,2495.4,2.80307]
[1751666163687,3.2078,2495.8,2495.4,2.80307]
[1751666163884,3.2078,2495.8,2495.7,2.80298]
[1751666171099,12.38107,2496.1,2495.9,0.8011]
[1751666171296,3.2078,2496.0,2495.9,0.8011]
[1751666171496,4.68250788,2496.0,2495.9,0.8011]
[1751666171897,1.47470788,2496.0,2495.9,0.8011]
[1751666172099,4.68250788,2496.0,2495.9,0.8011]
[1751666175498,5.48358788,2496.0,2495.9,0.8011]
[1751666176593,6.86278788,2496.0,2495.9,0.8011]
[1751666180101,9.26582652,2496.0,2495.9,0.8011]
[1751666181100,6.86278788,2496.0,2495.9,0.8011]
[1751666182195,3.65498788,2496.0,2495.9,0.8011]
[1751666182395,5.48358788,2496.0,2495.9,0.8011]
[1751666187006,17.04158788,2496.0,2495.9,0.8011]
[1751666188006,5.48358788,2496.0,2495.9,0.8011]
[1751666188208,17.04158788,2496.0,2495.9,0.8011]
[1751666189107,21.02729554,2496.0,2495.9,0.8011]
[1751666189805,8.66821554,2496.0,2495.9,0.8011]
[1751666190205,4.68250788,2496.0,2495.9,0.8011]
[1751666194314,7.88638369,2496.0,2495.9,0.8011]
[1751666196013,4.67858369,2496.0,2495.9,0.8011]
[1751666196213,7.88638369,2496.0,2495.9,0.8011]
[1751666199224,4.68250788,2496.0,2495.9,0.8011]
[1751666202430,7.08468494,2496.0,2495.9,0.8011]
[1751666205230,4.68250788,2496.0,2495.9,0.8011]
[1751666205726,1.47470788,2496.0,2495.9,0.8011]
[1751666205931,4.68250788,2496.0,2495.9,0.8011]
[1751666206733,4.68250788,2496.0,2495.9,2.8029]
[1751666206929,3.2078,2496.0,2495.9,2.8029]
[1751666207130,4.59296212,2496.0,2495.9,2.8029]
[1751666208635,1.38516212,2496.0,2495.9,2.8029]
[1751666209328,4.59296212,2496.0,2495.9,2.8029]
[1751666216037,1.38516212,2496.0,2495.9,2.8029]
[1751666223547,3.2078,2496.2,2496.1,0.80105]
[1751666223745,4.59316966,2496.2,2496.1,2.80285]
[1751666223936,1.38536966,2496.2,2496.1,2.80285]
[1751666232651,3.2078,2496.5,2496.4,0.80095]
[1751666233345,3.2078,2496.5,2496.4,2.80275]
[1751666235754,4.57692862,2496.5,2496.4,2.80275]
[1751666237758,1.36912862,2496.5,2496.4,2.80275]
[1751666248761,3.2078,2497.0,2496.9,0.80079]
[1751666248968,3.2078,2497.0,2496.9,2.80259]
[1751666252770,4.56683706,2497.3,2497.2,0.80069]
[1751666252970,7.77463706,2497.3,2497.2,0.80069]
[1751666253359,6.97397706,2497.3,2497.2,0.80069]
[1751666253570,5.37246,2497.3,2497.2,0.80069]
[1751666254468,5.37246,2497.3,2496.7,4.04661]
[1751666254469,4.5718,2497.3,2496.7,4.04661]
[1751666254668,0.80075,2497.1,2497.0,0.80074]
[1751666255568,0.80072,2497.2,2497.1,0.80071]
[1751666255763,2.13022,2497.2,2497.1,0.80071]
[1751666256468,4.53239706,2497.2,2497.1,0.80071]
[1751666258475,0.80074,2497.1,2497.0,0.80074]
[1751666260971,2.15309886,2497.1,2497.0,0.80074]
[1751666265781,0.80078,2497.0,2496.9,0.80079]
[1751666266079,5.36093886,2497.0,2496.9,0.80079]
[1751666266282,4.56015886,2497.0,2496.9,0.80079]
[1751666267683,4.56015886,2497.0,2496.7,1.3572]
[1751666267978,1.35235886,2496.9,2496.8,2.80262]
[1751666269180,1.35235886,2496.9,2496.8,0.80082]
[1751666278481,1.35235886,2496.9,2496.8,2.80262]
[1751666289488,5.60997706,2497.3,2497.2,0.80069]
[1751666289684,6.96329036,2497.3,2497.2,0.80069]
[1751666295987,4.5611133,2497.3,2497.2,2.80249]
[1751666296793,1.3533133,2497.3,2497.2,2.80249]
[1751666297188,5.60997706,2497.7,2497.6,0.80057]
[1751666297491,3.2078,2497.7,2497.6,2.80237]
[1751666302397,4.66974,2498.0,2497.6,2.0018]
[1751666302597,4.66974,2498.0,2497.8,2.80227]
[1751666302996,4.66974,2498.0,2497.9,0.80047]
[1751666303194,4.66974,2498.0,2497.8,2.80228]
[1751666303600,4.66974,2498.0,2497.9,0.80047]
[1751666305298,1.46194,2498.0,2497.9,0.80047]
[1751666305499,4.66974,2498.0,2497.9,0.80047]
[1751666307101,3.8693,2498.0,2497.9,0.80047]
[1751666309304,5.19830615,2498.0,2497.9,0.80047]
[1751666311400,5.99874615,2498.0,2497.9,0.80047]
[1751666313503,0.80049,2497.9,2497.8,0.80048]
[1751666313705,1.32900615,2497.9,2497.8,0.80048]
[1751666313903,1.32900615,2497.9,2497.8,2.80228]
[1751666314405,1.32900615,2497.9,2497.8,4.15768]
[1751666314806,2.12947615,2497.9,2497.8,4.15768]
[1751666315003,1.32900615,2497.9,2497.8,4.15768]
[1751666318007,2.12947615,2497.9,2497.8,4.15768]
[1751666318207,1.32900615,2497.9,2497.8,4.15768]
[1751666322309,2.12947615,2497.9,2497.8,2.0018]
[1751666323012,1.32900615,2497.9,2497.8,2.8023]
[1751666323312,2.12947615,2497.9,2497.8,2.8023]
[1751666323909,5.33727615,2497.9,2497.8,2.0018]
[1751666324504,5.33727615,2497.9,2497.8,2.8023]
[1751666324812,5.33643023,2497.9,2497.8,2.8023]
[1751666325312,4.53596023,2497.9,2497.8,2.8023]
[1751666326212,5.33643023,2497.9,2497.8,2.8023]
[1751666326911,4.53596023,2497.9,2497.8,2.8023]
[1751666328509,5.33643023,2497.9,2497.8,2.8023]
[1751666329408,4.53596023,2497.9,2497.8,2.8023]
[1751666331010,5.33643023,2497.9,2497.8,2.8023]
[1751666331313,4.53596023,2497.9,2497.8,2.8023]
[1751666331713,5.33643023,2497.9,2497.8,2.8023]
[1751666332916,0.80051,2497.8,2497.6,2.16104]
[1751666333119,0.80051,2497.8,2497.7,2.0018]
[1751666333317,2.13153882,2497.8,2497.7,2.0018]
[1751666335418,2.13153882,2497.8,2497.7,2.80233]
[1751666336316,2.13153882,2497.8,2497.7,4.21703]
[1751666336519,1.33102882,2497.8,2497.7,4.21703]
[1751666336717,2.13152882,2497.8,2497.7,4.21703]
[1751666340322,2.13152882,2497.8,2497.7,3.4165]